fUST/lending_fUST_20240705
["ID","MTS","AMOUNT","RATE_DAILY","PERIOD"]
[331160459,1720111845403,-500.0,0.00013972,2]
[331160460,1720111845413,-12654.94,0.00013972,2]
[331160461,1720111845504,-1693.98,0.00013972,2]
[331160463,1720111845514,-1128.2,0.00013972,2]
[331160464,1720111845523,-1107.55,0.00013972,2]
[331160465,1720111845532,-253.76471171,0.00013972,2]
[331160466,1720111845541,-500.0,0.00013972,2]
[331160468,1720111845550,-500.0,0.00013972,2]
[331160470,1720111845559,-500.0,0.00013972,2]
[331160472,1720111845568,-500.0,0.00013972,2]
[331160474,1720111845577,-347.45257925,0.00013972,2]
[331160476,1720111845586,-500.0,0.00013972,2]
[331160478,1720111845595,-500.0,0.00013972,2]
[331160480,1720111845604,-820.84,0.00013972,2]
[331160482,1720111845613,-500.0,0.00013972,2]
[331160484,1720111845623,-500.0,0.00013972,2]
[331160486,1720111845632,-730.93,0.00013972,2]
[331160488,1720111845642,-500.0,0.00013972,2]
[331160489,1720111845651,-500.0,0.00013972,2]
[331160490,1720111845661,-500.0,0.00013972,2]
[331160492,1720111845670,-500.0,0.00013972,2]
[331160494,1720111845680,-500.0,0.00013972,2]
[331160497,1720111845690,-415.49218334,0.00013972,2]
[331160498,1720111845699,-500.0,0.00013972,2]
[331160500,1720111845709,-551.19,0.00013972,2]
[331160502,1720111845718,-500.0,0.00013972,2]
[331160504,1720111845727,-1712.0,0.00013972,2]
[331160506,1720111845739,-500.0,0.00013972,2]
[331160508,1720111845748,-737.52,0.00013972,2]
[331160510,1720111845758,-410.64477722,0.00013972,2]
[331160514,1720111845772,-500.0,0.00013972,2]
[331160518,1720111845781,-500.0,0.00013972,2]
[331160522,1720111845791,-3301.17,0.00013972,2]
[331160526,1720111845801,-500.0,0.00013972,2]
[331160529,1720111845810,-909.9,0.00013972,2]
[331160532,1720111845820,-500.0,0.00013972,2]
[331160535,1720111845829,-500.0,0.00013972,2]
[331160538,1720111845839,-500.0,0.00013972,2]
[331160540,1720111845850,-500.0,0.00013972,2]
[331160542,1720111845860,-500.0,0.00013972,2]
[331160544,1720111845869,-500.0,0.00013972,2]
[331160547,1720111845878,-790.85,0.00013972,2]
[331160550,1720111845888,-500.0,0.00013972,2]
[331160554,1720111845897,-4226.55,0.00013972,2]
[331160557,1720111845907,-500.0,0.00013972,2]
[331160560,1720111845916,-500.0,0.00013972,2]
[331160563,1720111845925,-1373.4,0.00013972,2]
[331160566,1720111845934,-2265.01,0.00013972,2]
[331160569,1720111845943,-500.0,0.00013972,2]
[331160571,1720111845952,-500.0,0.00013972,2]
[331160573,1720111845962,-500.0,0.00013972,2]
[331160575,1720111845974,-500.0,0.00013972,2]
[331160576,1720111845983,-610.89,0.00013972,2]
[331160577,1720111845992,-500.0,0.00013972,2]
[331160578,1720111846003,-500.0,0.00013972,2]
[331160579,1720111846012,-500.0,0.00013972,2]
[331160580,1720111846022,-500.0,0.00013972,2]
[331160581,1720111846032,-500.0,0.00013972,2]
[331160582,1720111846043,-500.0,0.00013972,2]
[331160583,1720111846052,-500.0,0.00013972,2]
[331160584,1720111846061,-500.0,0.00013972,2]
[331160585,1720111846070,-1703.24,0.00013972,2]
[331160586,1720111846080,-550.802802,0.00013972,2]
[331160587,1720111846089,-1501.58,0.00013972,2]
[331160588,1720111846100,-500.0,0.00013972,2]
[331160589,1720111846109,-500.0,0.00013972,2]
[331160590,1720111846120,-500.0,0.00013972,2]
[331160591,1720111846131,-500.0,0.00013972,2]
[331160592,1720111846141,-500.0,0.00013972,2]
[331160593,1720111846151,-7558.61,0.00013972,2]
[331160594,1720111846160,-500.0,0.00013972,2]
[331160595,1720111846170,-500.0,0.00013972,2]
[331160596,1720111846180,-500.0,0.00013972,2]
[331160598,1720111846190,-500.0,0.00013972,2]
[331160599,1720111846200,-500.0,0.00013972,2]
[331160600,1720111846210,-628.13,0.00013972,2]
[331160601,1720111846220,-1442.91,0.00013972,2]
[331160602,1720111846230,-500.0,0.00013972,2]
[331160603,1720111846248,-500.0,0.00013972,2]
[331160604,1720111846258,-580.16,0.00013972,2]
[331160605,1720111846268,-500.0,0.00013972,2]
[331160606,1720111846277,-1175.56,0.00013972,2]
[331160607,1720111846288,-500.0,0.00013972,2]
[331160608,1720111846298,-574.50141139,0.00013972,2]
[331160609,1720111846308,-500.0,0.00013972,2]
[331160610,1720111846318,-904.07,0.00013972,2]
[331160611,1720111846327,-500.0,0.00013972,2]
[331160612,1720111846336,-500.0,0.00013972,2]
[331160613,1720111846345,-500.0,0.00013972,2]
[331160614,1720111846355,-500.0,0.00013972,2]
[331160615,1720111846363,-4335.35,0.00013972,2]
[331160616,1720111846372,-500.0,0.00013972,2]
[331160617,1720111846381,-500.0,0.00013972,2]
[331160618,1720111846390,-500.0,0.00013972,2]
[331160619,1720111846400,-500.0,0.00013972,2]
[331160620,1720111846409,-500.0,0.00013972,2]
[331160621,1720111846418,-500.0,0.00013972,2]
[331160622,1720111846428,-534.88,0.00013972,2]
[331160623,1720111846437,-500.0,0.00013972,2]
[331160624,1720111846447,-500.0,0.00013972,2]
[331160625,1720111846456,-500.0,0.00013972,2]
[331160626,1720111846465,-505.39705489,0.00013972,2]
[331160627,1720111846474,-500.0,0.00013972,2]
[331160628,1720111846492,-500.0,0.00013972,2]
[331160629,1720111846503,-27744.77,0.00013972,2]
[331160630,1720111846512,-500.0,0.00013972,2]
[331160631,1720111846521,-500.0,0.00013972,2]
[331160632,1720111846530,-500.0,0.00013972,2]
[331160633,1720111846541,-500.0,0.00013972,2]
[331160634,1720111846550,-500.0,0.00013972,2]
[331160635,1720111846559,-553.82,0.00013972,2]
[331160636,1720111846568,-500.0,0.00013972,2]
[331160637,1720111846577,-501.5811919,0.00013972,2]
[331160638,1720111846586,-500.0,0.00013972,2]
[331160639,1720111846595,-500.0,0.00013972,2]
[331160640,1720111846604,-2916.21,0.00013972,2]
[331160641,1720111846613,-500.0,0.00013972,2]
[331160642,1720111846623,-500.0,0.00013972,2]
[331160643,1720111846631,-1759.87,0.00013972,2]
[331160644,1720111846641,-500.0,0.00013972,2]
[331160645,1720111846650,-500.0,0.00013972,2]
[331160646,1720111846659,-564.93040162,0.00013972,2]
[331160647,1720111846668,-1048.66,0.00013972,2]
[331160648,1720111846677,-500.0,0.00013972,2]
[331160649,1720111846687,-500.0,0.00013972,2]
[331160650,1720111846696,-4910.82,0.00013972,2]
[331160651,1720111846705,-500.0,0.00013972,2]
[331160652,1720111846714,-7531.94,0.00013972,2]
[331160653,1720111846723,-500.0,0.00013972,2]
[331160654,1720111846732,-1929.35,0.00013972,2]
[331160655,1720111846745,-500.0,0.00013972,2]
[331160656,1720111846759,-500.0,0.00013972,2]
[331160657,1720111846769,-500.0,0.00013972,2]
[331160658,1720111846778,-501.49888466,0.00013972,2]
[331160659,1720111846788,-1779.19369272,0.00013972,2]
[331160660,1720111847165,-7007.74630728,0.00013972,2]
[331160661,1720111847175,-500.0,0.00013972,2]
[331160662,1720111847185,-500.0,0.00013972,2]
[331160663,1720111847196,-7776.49,0.00013972,2]
[331160664,1720111847205,-500.0,0.00013972,2]
[331160665,1720111847215,-604.27,0.00013999,2]
[331160666,1720111847223,-6918.33,0.00013999,2]
[331160667,1720111847233,-29270.52363262,0.00014,2]
[331160668,1720111847248,-1602.96737924,0.00014048,2]
[331160669,1720111847257,-5085.72050358,0.00014146,2]
[331160670,1720111847267,-604.27,0.00014235,2]
[331160671,1720111847277,-1872.16870031,0.00014235,2]
[331160672,1720111847300,-5046.16129969,0.00014235,2]
[331160673,1720111847310,-604.27,0.00014245,2]
[331160674,1720111847321,-604.27,0.00014245,2]
[331160675,1720111847330,-604.27,0.00014245,2]
[331160676,1720111847339,-604.27,0.00014245,2]
[331160677,1720111847349,-6918.33,0.00014245,2]
[331160678,1720111847358,-3937.27138268,0.00014245,2]
[331160679,1720111847630,-502.05352522,0.00013698,2]
[331160680,1720111847639,-505.0772666,0.00013698,2]
[331160681,1720111847649,-500.0,0.00013698,2]
[331160682,1720111847658,-500.0,0.00013698,2]
[331160683,1720111847667,-2981.05861732,0.00014245,2]
[331160684,1720111847676,-6918.33,0.00014245,2]
[331160685,1720111847686,-6918.33,0.00014245,2]
[331160686,1720111847695,-151.0,0.00014245,2]
[331160687,1720111847704,-36785.13735588,0.00014246,2]
[331160688,1720111847713,-1206.24,0.00014246,2]
[331160689,1720111847722,-962.97,0.00014246,2]
[331160690,1720111847731,-500.0,0.00014246,2]
[331160691,1720111847743,-846.17,0.00014246,2]
[331160692,1720111847753,-500.0,0.00014246,2]
[331160693,1720111847762,-722.55,0.00014246,2]
[331160694,1720111847776,-1088.19,0.00014246,2]
[331160695,1720111847785,-500.0,0.00014246,2]
[331160696,1720111847795,-500.0,0.00014246,2]
[331160697,1720111847804,-500.0,0.00014246,2]
[331160698,1720111847814,-500.0,0.00014246,2]
[331160699,1720111847823,-466.07389223,0.00014246,2]
[331160700,1720111847832,-500.0,0.00014246,2]
[331160701,1720111847841,-500.0,0.00014246,2]
[331160702,1720111847852,-8296.52,0.00014246,2]
[331160703,1720111847860,-500.0,0.00014246,2]
[331160704,1720111847869,-500.0,0.00014246,2]
[331160705,1720111847878,-500.0,0.00014246,2]
[331160706,1720111847888,-500.0,0.00014246,2]
[331160707,1720111847896,-3764.85,0.00014246,2]
[331160708,1720111847905,-500.0,0.00014246,2]
[331160709,1720111847914,-500.0,0.00014246,2]
[331160710,1720111847923,-515.26173715,0.00014246,2]
[331160711,1720111847932,-500.0,0.00014246,2]
[331160712,1720111847941,-500.0,0.00014246,2]
[331160713,1720111847950,-500.0,0.00014246,2]
[331160714,1720111847959,-500.0,0.00014246,2]
[331160715,1720111847967,-594.73697576,0.00014246,2]
[331160716,1720111847976,-500.0,0.00014246,2]
[331160717,1720111847985,-500.0,0.00014246,2]
[331160718,1720111847997,-500.0,0.00014246,2]
[331160719,1720111848006,-691.65,0.00014246,2]
[331160720,1720111848015,-500.0,0.00014246,2]
[331160721,1720111848025,-500.0,0.00014246,2]
[331160722,1720111848034,-500.0,0.00014246,2]
[331160723,1720111848044,-500.0,0.00014246,2]
[331160724,1720111848052,-500.0,0.00014246,2]
[331160725,1720111848061,-500.0,0.00014246,2]
[331160726,1720111848071,-500.0,0.00014246,2]
[331160727,1720111848080,-500.0,0.00014246,2]
[331160728,1720111848089,-500.0,0.00014246,2]
[331160729,1720111848098,-500.0,0.00014246,2]
[331160730,1720111848108,-500.0,0.00014246,2]
[331160731,1720111848117,-500.0,0.00014246,2]
[331160732,1720111848127,-500.0,0.00014246,2]
[331160733,1720111848136,-500.0,0.00014246,2]
[331160734,1720111848145,-599.7,0.00014246,2]
[331160735,1720111848154,-1611.17,0.00014246,2]
[331160736,1720111848163,-500.0,0.00014246,2]
[331160737,1720111848173,-500.0,0.00014246,2]
[331160738,1720111848182,-500.0,0.00014246,2]
[331160739,1720111848191,-500.0,0.00014246,2]
[331160740,1720111848201,-500.0,0.00014246,2]
[331160741,1720111848210,-541.95,0.00014246,2]
[331160742,1720111848219,-500.0,0.00014246,2]
[331160743,1720111848229,-500.0,0.00014246,2]
[331160744,1720111848238,-500.0,0.00014246,2]
[331160745,1720111848248,-500.0,0.00014246,2]
[331160746,1720111848257,-500.0,0.00014246,2]
[331160747,1720111848266,-500.0,0.00014246,2]
[331160748,1720111848275,-500.0,0.00014246,2]
[331160749,1720111848284,-500.0,0.00014246,2]
[331160750,1720111848293,-500.0,0.00014246,2]
[331160751,1720111848302,-2198.82,0.00014246,2]
[331160752,1720111848311,-500.0,0.00014246,2]
[331160753,1720111848320,-387.67568367,0.00014246,2]
[331160754,1720111848329,-500.0,0.00014246,2]
[331160755,1720111848338,-500.0,0.00014246,2]
[331160756,1720111848346,-500.0,0.00014246,2]
[331160757,1720111848355,-1018.96,0.00014246,2]
[331160758,1720111848365,-500.0,0.00014246,2]
[331160759,1720111848374,-500.0,0.00014246,2]
[331160760,1720111848383,-500.0,0.00014246,2]
[331160761,1720111848392,-500.0,0.00014246,2]
[331160762,1720111848401,-781.13,0.00014246,2]
[331160763,1720111848486,-500.0,0.00014246,2]
[331160764,1720111848498,-1122.93,0.00014246,2]
[331160765,1720111848508,-198.36667961,0.00014246,2]
[331160766,1720111848518,-516.72558446,0.00014246,2]
[331160767,1720111848527,-500.0,0.00014246,2]
[331160768,1720111848537,-500.0,0.00014246,2]
[331160769,1720111848546,-500.0,0.00014246,2]
[331160770,1720111848555,-500.0,0.00014246,2]
[331160771,1720111848565,-500.0,0.00014246,2]
[331160772,1720111848574,-500.0,0.00014246,2]
[331160773,1720111848583,-500.0,0.00014246,2]
[331160774,1720111848593,-500.0,0.00014246,2]
[331160775,1720111848602,-500.0,0.00014246,2]
[331160776,1720111848611,-698.96368795,0.00014246,2]
[331160777,1720111848779,-865.50631205,0.00014246,2]
[331160778,1720111848788,-500.0,0.00014246,2]
[331160779,1720111848799,-500.0,0.00014246,2]
[331160780,1720111848808,-2030.75,0.00014246,2]
[331160781,1720111848819,-500.0,0.00014246,2]
[331160782,1720111848828,-500.0,0.00014246,2]
[331160783,1720111848838,-500.0,0.00014246,2]
[331160784,1720111848848,-500.0,0.00014246,2]
[331160785,1720111848857,-500.0,0.00014246,2]
[331160786,1720111848867,-500.0,0.00014246,2]
[331160787,1720111848877,-500.0,0.00014246,2]
[331160788,1720111848885,-500.0,0.00014246,2]
[331160789,1720111848894,-500.0,0.00014246,2]
[331160790,1720111848903,-500.0,0.00014246,2]
[331160791,1720111848913,-500.0,0.00014246,2]
[331160792,1720111848922,-500.0,0.00014246,2]
[331160793,1720111848931,-500.0,0.00014246,2]
[331160794,1720111848940,-12363.61,0.00014246,2]
[331160795,1720111848950,-500.0,0.00014246,2]
[331160796,1720111848959,-500.0,0.00014246,2]
[331160797,1720111848968,-500.0,0.00014246,2]
[331160798,1720111848978,-500.0,0.00014246,2]
[331160799,1720111848987,-500.0,0.00014246,2]
[331160800,1720111848999,-500.0,0.00014246,2]
[331160801,1720111849008,-1157.56,0.00014246,2]
[331160802,1720111849017,-1042.28,0.00014246,2]
[331160803,1720111849027,-500.0,0.00014246,2]
[331160804,1720111849035,-742.0,0.00014246,2]
[331160805,1720111849044,-500.0,0.00014246,2]
[331160806,1720111849054,-262.855374,0.00014246,2]
[331160807,1720111849064,-625.22,0.00014246,2]
[331160808,1720111849073,-500.0,0.00014246,2]
[331160809,1720111849082,-262.855374,0.00014246,2]
[331160810,1720111849093,-205.2907,0.00014246,2]
[331160811,1720111849105,-500.0,0.00014246,2]
[331160812,1720111849114,-1044.22,0.00014246,2]
[331160813,1720111849123,-500.0,0.00014246,2]
[331160814,1720111849132,-151.0,0.00014246,2]
[331160815,1720111849143,-1077.61,0.00014246,2]
[331160816,1720111849153,-500.0,0.00014246,2]
[331160817,1720111849162,-500.0,0.00014246,2]
[331160818,1720111849172,-500.0,0.00014246,2]
[331160819,1720111849181,-500.0,0.00014246,2]
[331160820,1720111849191,-500.0,0.00014246,2]
[331160821,1720111849200,-500.0,0.00014246,2]
[331160822,1720111849210,-500.0,0.00014246,2]
[331160823,1720111849219,-500.0,0.00014246,2]
[331160824,1720111849227,-411.52134221,0.00014246,2]
[331160825,1720111849241,-88.47865779,0.00014246,2]
[331160826,1720111849250,-500.0,0.00014246,2]
[331160827,1720111849259,-236.26134221,0.00014246,2]
[331160828,1720111849270,-263.73865779,0.00014246,2]
[331160829,1720111849280,-500.0,0.00014246,2]
[331160830,1720111849289,-500.0,0.00014246,2]
[331160831,1720111849299,-500.0,0.00014246,2]
[331160832,1720111849308,-500.0,0.00014246,2]
[331160833,1720111849318,-500.0,0.00014246,2]
[331160834,1720111849328,-353.57453144,0.00014246,2]
[331160835,1720111849337,-500.0,0.00014246,2]
[331160836,1720111849346,-500.0,0.00014246,2]
[331160837,1720111849355,-500.0,0.00014246,2]
[331160838,1720111849364,-500.0,0.00014246,2]
[331160839,1720111849373,-976.087188,0.00014246,2]
[331160840,1720111849382,-500.0,0.00014246,2]
[331160841,1720111849392,-316.58000769,0.00014246,2]
[331160842,1720111849470,-500.0,0.00013972,2]
[331160843,1720111849480,-510.12124607,0.00013972,2]
[331160844,1720111849491,-183.41999231,0.00014246,2]
[331160845,1720111849500,-182.6581727,0.00014246,2]
[331160846,1720111849729,-793.4290153,0.00014246,2]
[331160847,1720111849740,-61.5709847,0.00014246,2]
[331160848,1720111849752,-438.4290153,0.00014246,2]
[331160849,1720111849762,-138.94865355,0.00014246,2]
[331160850,1720111849777,-361.05134645,0.00014246,2]
[331160851,1720111849786,-500.0,0.00014246,2]
[331160852,1720111849795,-500.0,0.00014246,2]
[331160853,1720111849804,-1530.62,0.00014246,2]
[331160854,1720111849814,-547.01,0.00014246,2]
[331160855,1720111849823,-500.0,0.00014246,2]
[331160856,1720111849832,-500.0,0.00014246,2]
[331160857,1720111849842,-500.0,0.00014246,2]
[331160858,1720111849853,-1040.2,0.00014246,2]
[331160859,1720111849863,-500.0,0.00014246,2]
[331160860,1720111849872,-151.624765,0.00014246,2]
[331160861,1720111849881,-151.0,0.00014246,2]
[331160862,1720111849889,-500.0,0.00014246,2]
[331160863,1720111849899,-500.0,0.00014246,2]
[331160864,1720111849908,-12654.94,0.00014246,2]
[331160865,1720111849918,-1128.2,0.00014246,2]
[331160866,1720111849927,-151.0,0.00014246,2]
[331160867,1720111849937,-500.0,0.00014246,2]
[331160868,1720111849946,-1107.55,0.00014246,2]
[331160869,1720111849956,-500.0,0.00014246,2]
[331160870,1720111849965,-500.0,0.00014246,2]
[331160871,1720111849974,-500.0,0.00014246,2]
[331160872,1720111849983,-500.0,0.00014246,2]
[331160873,1720111849999,-500.0,0.00014246,2]
[331160874,1720111850009,-820.84,0.00014246,2]
[331160875,1720111850019,-500.0,0.00014246,2]
[331160876,1720111850028,-500.0,0.00014246,2]
[331160877,1720111850038,-730.93,0.00014246,2]
[331160878,1720111850047,-500.0,0.00014246,2]
[331160879,1720111850056,-225.420696,0.00014246,2]
[331160880,1720111850066,-500.0,0.00014246,2]
[331160881,1720111850076,-500.0,0.00014246,2]
[331160882,1720111850085,-500.0,0.00014246,2]
[331160883,1720111850095,-500.0,0.00014246,2]
[331160884,1720111850104,-551.19,0.00014246,2]
[331160885,1720111850113,-500.0,0.00014246,2]
[331160886,1720111850122,-1712.0,0.00014246,2]
[331160887,1720111850132,-500.0,0.00014246,2]
[331160888,1720111850141,-737.52,0.00014246,2]
[331160889,1720111850151,-500.0,0.00014246,2]
[331160890,1720111850160,-500.0,0.00014246,2]
[331160891,1720111850169,-3301.17,0.00014246,2]
[331160892,1720111850178,-500.0,0.00014246,2]
[331160893,1720111850188,-909.9,0.00014246,2]
[331160894,1720111850197,-500.0,0.00014246,2]
[331160895,1720111850207,-500.0,0.00014246,2]
[331160896,1720111850217,-151.0,0.00014246,2]
[331160897,1720111850226,-500.0,0.00014246,2]
[331160898,1720111850235,-500.0,0.00014246,2]
[331160899,1720111850249,-1255.282729,0.00014246,2]
[331160900,1720111850258,-500.0,0.00014246,2]
[331160901,1720111850267,-500.0,0.00014246,2]
[331160902,1720111850278,-1255.282729,0.00014246,2]
[331160903,1720111850287,-790.85,0.00014246,2]
[331160904,1720111850297,-500.0,0.00014246,2]
[331160905,1720111850306,-4226.55,0.00014246,2]
[331160906,1720111850316,-557.73154982,0.00014246,2]
[331160907,1720111850326,-257.22127329,0.00014246,2]
[331160908,1720111850336,-1110.946963,0.00014246,2]
[331160909,1720111850345,-1373.4,0.00014246,2]
[331160910,1720111850355,-1110.946963,0.00014246,2]
[331160911,1720111850364,-2265.01,0.00014246,2]
[331160912,1720111850374,-380.045789,0.00014246,2]
[331160913,1720111850383,-500.0,0.00014246,2]
[331160914,1720111850392,-500.0,0.00014246,2]
[331160915,1720111850403,-500.0,0.00014246,2]
[331160916,1720111850412,-380.045789,0.00014246,2]
[331160917,1720111850421,-610.89,0.00014246,2]
[331160918,1720111850430,-500.0,0.00014246,2]
[331160919,1720111850440,-500.0,0.00014246,2]
[331160920,1720111850449,-500.0,0.00014246,2]
[331160921,1720111850459,-500.0,0.00014246,2]
[331160922,1720111850468,-500.0,0.00014246,2]
[331160923,1720111850478,-500.0,0.00014246,2]
[331160924,1720111850489,-500.0,0.00014246,2]
[331160925,1720111850498,-500.0,0.00014246,2]
[331160926,1720111850507,-1703.24,0.00014246,2]
[331160927,1720111850516,-1501.58,0.00014246,2]
[331160928,1720111850526,-500.0,0.00014246,2]
[331160929,1720111850535,-500.0,0.00014246,2]
[331160930,1720111850544,-151.0,0.00014246,2]
[331160931,1720111850553,-500.0,0.00014246,2]
[331160932,1720111850563,-151.0,0.00014246,2]
[331160933,1720111850572,-96.42503978,0.00014246,2]
[331160934,1720111850592,-403.57496022,0.00014246,2]
[331160935,1720111850602,-151.0,0.00014246,2]
[331160936,1720111850611,-160.383867,0.00014246,2]
[331160937,1720111850620,-500.0,0.00014246,2]
[331160938,1720111850630,-160.383867,0.00014246,2]
[331160939,1720111850639,-7558.61,0.00014246,2]
[331160940,1720111850648,-500.0,0.00014246,2]
[331160941,1720111850658,-151.0,0.00014246,2]
[331160942,1720111850667,-500.0,0.00014246,2]
[331160943,1720111850677,-504.09542715,0.00014246,2]
[331160944,1720111850686,-500.0,0.00014246,2]
[331160945,1720111850695,-500.0,0.00014246,2]
[331160946,1720111850704,-151.0,0.00014246,2]
[331160947,1720111850714,-151.0,0.00014246,2]
[331160948,1720111850723,-151.0,0.00014246,2]
[331160949,1720111850732,-628.13,0.00014246,2]
[331160950,1720111850743,-151.0,0.00014246,2]
[331160951,1720111850758,-310.0,0.00014246,2]
[331160952,1720111850768,-1442.91,0.00014246,2]
[331160953,1720111850778,-310.0,0.00014246,2]
[331160954,1720111850787,-310.0,0.00014246,2]
[331160955,1720111850798,-451.099065,0.00014246,2]
[331160956,1720111850881,-500.0,0.00014246,2]
[331160957,1720111850891,-500.0,0.00014246,2]
[331160958,1720111850901,-580.16,0.00014246,2]
[331160959,1720111850910,-500.0,0.00014246,2]
[331160960,1720111850919,-1175.56,0.00014246,2]
[331160961,1720111850929,-500.0,0.00014246,2]
[331160962,1720111850939,-500.0,0.00014246,2]
[331160963,1720111850949,-904.07,0.00014246,2]
[331160964,1720111850958,-500.0,0.00014246,2]
[331160965,1720111850967,-500.0,0.00014246,2]
[331160966,1720111850977,-500.0,0.00014246,2]
[331160967,1720111850987,-500.0,0.00014246,2]
[331160968,1720111850997,-4335.35,0.00014246,2]
[331160969,1720111851007,-500.0,0.00014246,2]
[331160970,1720111851017,-500.0,0.00014246,2]
[331160971,1720111851026,-2573.145769,0.00014246,2]
[331160972,1720111851035,-3421.741012,0.00014246,2]
[331160973,1720111851045,-500.0,0.00014246,2]
[331160974,1720111851054,-500.0,0.00014246,2]
[331160975,1720111851063,-3421.741012,0.00014246,2]
[331160976,1720111851072,-2573.145769,0.00014246,2]
[331160977,1720111851082,-500.0,0.00014246,2]
[331160978,1720111851091,-500.0,0.00014246,2]
[331160979,1720111851100,-345.803772,0.00014246,2]
[331160980,1720111851110,-534.88,0.00014246,2]
[331160981,1720111851119,-500.0,0.00014246,2]
[331160982,1720111851128,-500.0,0.00014246,2]
[331160983,1720111851138,-345.803772,0.00014246,2]
[331160984,1720111851147,-500.0,0.00014246,2]
[331160985,1720111851157,-500.0,0.00014246,2]
[331160986,1720111851166,-500.0,0.00014246,2]
[331160987,1720111851175,-27744.77,0.00014246,2]
[331160988,1720111851185,-500.0,0.00014246,2]
[331160989,1720111851196,-8032.402223,0.00014246,2]
[331160990,1720111851205,-500.0,0.00014246,2]
[331160991,1720111851214,-8032.402223,0.00014246,2]
[331160992,1720111851223,-500.0,0.00014246,2]
[331160993,1720111851233,-500.0,0.00014246,2]
[331160994,1720111851243,-897.098697,0.00014246,2]
[331160995,1720111851253,-553.82,0.00014246,2]
[331160996,1720111851262,-897.098697,0.00014246,2]
[331160997,1720111851271,-676.174698,0.00014246,2]
[331160998,1720111851281,-676.174698,0.00014246,2]
[331160999,1720111851290,-897.098697,0.00014246,2]
[331161000,1720111851299,-897.098697,0.00014246,2]
[331161001,1720111851309,-500.0,0.00014246,2]
[331161002,1720111851318,-676.174698,0.00014246,2]
[331161003,1720111851328,-676.174698,0.00014246,2]
[331161004,1720111851337,-500.0,0.00014246,2]
[331161005,1720111851347,-500.0,0.00014246,2]
[331161006,1720111851356,-2916.21,0.00014246,2]
[331161007,1720111851366,-500.0,0.00014246,2]
[331161008,1720111851375,-500.0,0.00014246,2]
[331161009,1720111851384,-1759.87,0.00014246,2]
[331161010,1720111851393,-500.0,0.00014246,2]
[331161011,1720111851403,-500.0,0.00014246,2]
[331161012,1720111851412,-1048.66,0.00014246,2]
[331161013,1720111851422,-500.0,0.00014246,2]
[331161014,1720111851431,-4910.82,0.00014246,2]
[331161015,1720111851441,-500.0,0.00014246,2]
[331161016,1720111851450,-500.0,0.00014246,2]
[331161017,1720111851460,-1929.35,0.00014246,2]
[331161018,1720111851469,-500.0,0.00014246,2]
[331161019,1720111851479,-601.41515309,0.00014246,2]
[331161020,1720111851489,-500.0,0.00014246,2]
[331161021,1720111851499,-8786.94,0.00014246,2]
[331161022,1720111851509,-500.0,0.00014246,2]
[331161023,1720111851518,-2141.918123,0.00014246,2]
[331161024,1720111851527,-2141.918123,0.00014246,2]